Department family,Entity,Date,Expense type,Expense area,Supplier,Amount,Transaction
HMRC,VOA,16/03/2017,Service Charge,Corporate,Alfresco Software Ltd,"-51,082.50",5100008131
HMRC,VOA,07/03/2017,Service Charge,Corporate,Alfresco Software Ltd,"-63,157.51",5100007750
HMRC,VOA,22/03/2017,IT Services,Corporate,APPNOVATION TECHNOLOGIES LTD.,"-73,687.52",5100008221
HMRC,VOA,29/03/2017,IT Services,Corporate,APPNOVATION TECHNOLOGIES LTD.,"-88,295.27",5100008437
HMRC,VOA,28/03/2017,Salary Charges,Corporate,BROOK STREET (UK) LTD,"-27,063.54",1900041631
HMRC,VOA,23/03/2017,Salary Charges,Corporate,BROOK STREET (UK) LTD,"-31,178.87",1900037700
HMRC,VOA,31/03/2017,Salary Charges,Corporate,BROOK STREET (UK) LTD,"-40,862.32",1900041649
HMRC,VOA,30/03/2017,Salary Charges,Corporate,BROOK STREET (UK) LTD,"-42,720.70",1900041648
HMRC,VOA,06/04/2017,Accommodation Charges,Corporate,Cabinet Office,"-39,964.68",5100008410
HMRC,VOA,06/04/2017,Accommodation Charges,Corporate,Cabinet Office,"-39,964.68",5100008411
HMRC,VOA,16/03/2017,Online Services,Corporate,Cambridge Information Ltd,"-36,633.60",5100008120
HMRC,VOA,31/03/2017,Online Services,Corporate,Cambridge Information Ltd,"-90,900.00",5100008503
HMRC,VOA,10/03/2017,Aspire IT Contract,Corporate,CAPGEMINI UK PLC,"-104,936.68",5100007990
HMRC,VOA,17/03/2017,Training,Corporate,CAPITA BUSINESS SERVICES LTD,"-25,830.00",5100008146
HMRC,VOA,31/03/2017,Training,Corporate,CAPITA BUSINESS SERVICES LTD,"-26,018.88",1900041659
HMRC,VOA,30/03/2017,Training,Corporate,CAPITA BUSINESS SERVICES LTD,"-29,334.63",1900041646
HMRC,VOA,23/03/2017,Training,Corporate,CAPITA BUSINESS SERVICES LTD,"-29,362.24",1900037701
HMRC,VOA,16/03/2017,Training,Corporate,CAPITA BUSINESS SERVICES LTD,"-45,733.06",1900037680
HMRC,VOA,07/03/2017,Training,Corporate,CAPITA BUSINESS SERVICES LTD,"-45,872.96",1900037645
HMRC,VOA,10/03/2017,Business Rates,Corporate,CITY OF WESTMINSTER 401997275,"-90,992.00",5100007975
HMRC,VOA,10/03/2017,Business Rates,Corporate,CITY OF WESTMINSTER 401997275,"-142,175.00",5100007976
HMRC,VOA,28/03/2017,Training,Corporate,CSL -KPMG LLP,"-26,002.80",5100008409
HMRC,VOA,07/03/2017,Professional Services,Corporate,DEFRA C/O CAPITA,"-31,660.73",5100007759
HMRC,VOA,07/03/2017,Professional Services,Corporate,DEFRA C/O CAPITA,"-32,115.98",5100007814
HMRC,VOA,07/03/2017,Professional Services,Corporate,DEFRA C/O CAPITA,"-33,001.87",5100007818
HMRC,VOA,07/03/2017,Professional Services,Corporate,DEFRA C/O CAPITA,"-34,471.41",5100007816
HMRC,VOA,07/03/2017,IT Services,Corporate,Deloitte Ltd Liability Partnership,"-175,067.76",5100007804
HMRC,VOA,07/03/2017,IT Services,Corporate,Deloitte Ltd Liability Partnership,"-384,762.37",5100007803
HMRC,VOA,30/03/2017,Accommodation Charges,Corporate,Department of Education,"-103,875.79",5100008490
HMRC,VOA,23/03/2017,IT Services,Corporate,Equal Experts UK Ltd,"-29,640.00",5100008298
HMRC,VOA,23/03/2017,IT Services,Corporate,Equal Experts UK Ltd,"-36,480.00",5100008299
HMRC,VOA,13/03/2017,Furniture,Corporate,Flexiform Business Furniture Ltd,"-26,176.80",5100008027
HMRC,VOA,13/03/2017,IT Services,Corporate,Fujitsu Services Ltd,"-350,932.39",5100008086
HMRC,VOA,24/03/2017,Market Research,Corporate,GFK UK Limited,"-59,392.80",5100008316
HMRC,VOA,28/03/2017,Service Charge,Corporate,Grant Thornton LLP,"-27,178.52",5100008423
HMRC,VOA,07/03/2017,Service Charge,Corporate,HM Revenue & Customs,"-26,000.00",5100007777
HMRC,VOA,29/03/2017,Service Charge,Corporate,HM Revenue & Customs,"-26,350.41",5100008432
HMRC,VOA,30/03/2017,Service Charge,Corporate,HM Revenue & Customs,"-31,234.80",1900041647
HMRC,VOA,28/03/2017,Service Charge,Corporate,HM Revenue & Customs,"-36,256.44",5100008404
HMRC,VOA,29/03/2017,Service Charge,Corporate,HM Revenue & Customs,"-36,546.00",5100008429
HMRC,VOA,28/03/2017,Service Charge,Corporate,HM Revenue & Customs,"-42,932.96",5100008402
HMRC,VOA,15/03/2017,Service Charge,Corporate,HM Revenue & Customs,"-43,044.77",1900037668
HMRC,VOA,29/03/2017,Service Charge,Corporate,HM Revenue & Customs,"-52,947.56",5100008428
HMRC,VOA,31/03/2017,Service Charge,Corporate,HM Revenue & Customs,"-70,702.03",5100008505
HMRC,VOA,30/03/2017,Service Charge,Corporate,HM Revenue & Customs,"-77,935.45",1900041645
HMRC,VOA,30/03/2017,Service Charge,Corporate,HM Revenue & Customs,"-161,785.76",5100008480
HMRC,VOA,30/03/2017,Service Charge,Corporate,HM Revenue & Customs,"-398,442.21",5100008486
HMRC,VOA,31/03/2017,Service Charge,Corporate,HM Revenue & Customs,"-398,856.74",1900041655
HMRC,VOA,31/03/2017,Service Charge,Corporate,HM Revenue & Customs,"-430,000.00",5100008504
HMRC,VOA,15/03/2017,Service Charge,Corporate,HM Revenue & Customs,"-432,814.00",5100008105
HMRC,VOA,31/03/2017,Service Charge,Corporate,HM Revenue & Customs,"-567,633.98",5100008533
HMRC,VOA,30/03/2017,Service Charge,Corporate,HM Revenue & Customs,"-613,656.61",5100008479
HMRC,VOA,03/04/2017,Service Charge,Corporate,ICF Consulting Services Limited,"-53,153.66",5100008541
HMRC,VOA,27/03/2017,Service Charge,Corporate,ICF Consulting Services Limited,"-53,153.68",5100008330
HMRC,VOA,30/03/2017,Training,Corporate,Korn Ferry Hay Group Limited,"-82,030.80",5100008484
HMRC,VOA,27/03/2017,Professional Services,Corporate,Land and Property Services,"45,000.00",1700003057
HMRC,VOA,08/03/2017,Professional Services,Corporate,Land and Property Services,"-44,775.00",1900037652
HMRC,VOA,27/03/2017,Professional Services,Corporate,Land and Property Services,"-53,730.00",1900037691
HMRC,VOA,29/03/2017,Business Rates,Corporate,LB OF MERTON - 61270471,"-190,867.50",5100008446
HMRC,VOA,07/03/2017,Professional Services,Corporate,Linguistic Landscapes Ltd,"-42,240.00",5100007880
HMRC,VOA,23/03/2017,Business Rates,Corporate,MANCHESTER CC - 700463662,"79,520.00",1700003064
HMRC,VOA,29/03/2017,IT Services,Corporate,Misco Uk,"-298,542.00",5100008444
HMRC,VOA,30/03/2017,Annual renewal,Corporate,NATIONAL CAR PARKS - MANC,"-50,400.00",5100008487
HMRC,VOA,17/03/2017,IT Services,Corporate,REDEWB LTD,"-31,440.00",5100008145
HMRC,VOA,30/03/2017,IT Services,Corporate,REDEWB LTD,"-39,936.00",5100008497
HMRC,VOA,10/03/2017,IT Services,Corporate,Risual Limited,"-113,100.00",5100007977
HMRC,VOA,30/03/2017,Royal Mail Postage,Corporate,ROYAL MAIL,"-72,403.03",1900041644
HMRC,VOA,13/03/2017,Furniture,Corporate,Senator International Ltd,"-47,175.10",5100008022
HMRC,VOA,31/03/2017,IT Services,Corporate,Softcat PLC,"-42,325.92",5100008510
HMRC,VOA,17/03/2017,IT Services,Corporate,Softcat PLC,"-127,509.23",5100008140
HMRC,VOA,23/03/2017,Licence fees,Corporate,Software Box limited,"-76,689.00",5100008295
HMRC,VOA,30/03/2017,Licence fees,Corporate,Software Box limited,"-127,260.00",5100008491
HMRC,VOA,10/03/2017,Licence fees,Corporate,Software Box limited,"-136,060.61",5100007969
HMRC,VOA,16/03/2017,Network charges,Corporate,TNT UK LTD,"-41,272.51",5100008122
HMRC,VOA,10/03/2017,Service Charge,Corporate,UNIFY ENTERPRISE,"-25,933.86",5100008005
HMRC,VOA,29/03/2017,Service Charge,Corporate,UNIFY ENTERPRISE,"-50,896.01",5100008436
HMRC,VOA,10/03/2017,IT Services,Corporate,XEROX (UK) LTD,"-47,946.41",5100008002
